Cogmind - Beta 15 @@@ ROGUE MODE // 2025.07.18 @ 18:51:29 Player: BlobtheGreat Result: Destroyed by S-27 Virus with Autogun Performance ------------- Evolutions (5) 2500 Regions Visited (11) 2200 Robots Destroyed (173) 865 Value Destroyed (4797) 4797 Prototype IDs (16) 320 Alien Tech Used (0) 0 Bonus (453) 453 TOTAL SCORE: 11135 Bonus ------- Follower Combat Kills 555 Friendly Fire -102 Cogmind --------- Core Integrity 0/1000 Matter 300/300 Energy 100/100 System Corruption 8% Temperature Cool (0) Movement Core (50) Location -5/Factory Parts ------- > --- POWER (1) -------- (None) > --- PROPULSION (6) --- (None) > --- UTILITY (8) ------ (None) > --- WEAPON (2) ------- (None) > --- INVENTORY (5) ---- Combat Airjet Improved Sensor Array Weapon Mount Improved Light Armor Plating Plasma Cutter Peak State ------------ > --- POWER ------------ Fission Core > --- PROPULSION ------- Combat Airjet Combat Airjet Combat Airjet Antigrav System Linear Gravjet > --- UTILITY ---------- Improved Cryofiber Web Large Storage Unit Enhanced Optical Array Advanced Sensor Array Advanced Signal Interpreter Actuator Array Improved Hacking Suite Improved Hacking Suite > --- WEAPON ----------- Powered Hammer Phasing Sabre > --- INVENTORY -------- Fission Core Improved Cooling System Improved Sensor Array Weapon Mount Improved Light Armor Plating Improved Light Armor Plating Improved System Shield Authchip [Propulsion] Improved Datajack Plasma Cutter Great Axe [Rating: 80] Favorites ----------- Power Ion Engine Engine Ion Engine Power Core Micro Nuclear Core Propulsion Light Treads Treads Light Treads Leg Aluminum Leg Hover Unit Combat Airjet Flight Unit Improved VTOL Module Utility Large Storage Unit Device Seismic Detector Storage Large Storage Unit Processor Enhanced Optical Array Hackware Improved Hacking Suite Protection Improved Light Armor Plating Weapon Improved Light Cannon Energy Gun EM Pulse Gun Ballistic Gun Assault Rifle Ballistic Cannon Improved Light Cannon Launcher Rocket Launcher Impact Weapon Powered Hammer Slashing Weapon Great Axe Special Melee Weapon Improved Datajack Build | -11 -10 -10 -9 -9 -9 -8 -8 -7 -6 -6 -5 ------- Run | Yrd Mat Min Mat Min Exi Min Mat Fac Fac Ext Fac Slots Evolved 10 | . . . 2 . . . 2 2 2 . 2 Power . | . . . . . . . . . . . . Propulsion 4 | . . . 1 . . . 1 1 1 . . Utility 6 | . . . 1 . . . 1 1 1 . 2 Weapon . | . . . . . . . . . . . . Parts Attached 119 | 8 6 2 17 1 . 4 22 27 13 8 11 Power 11 | 1 1 1 . 1 . . 1 3 . 1 2 Engine 6 | 1 1 1 . 1 . . 1 . . . 1 Core 5 | . . . . . . . . 3 . 1 1 Reactor . | . . . . . . . . . . . . Propulsion 42 | 2 1 . 8 . . . 12 8 6 1 4 Treads 19 | 2 1 . 7 . . . 9 . . . . Leg 3 | . . . 1 . . . 2 . . . . Wheel . | . . . . . . . . . . . . Hover 18 | . . . . . . . . 7 6 1 4 Flight 2 | . . . . . . . 1 1 . . . Utility 32 | 2 3 . 2 . . 1 3 9 5 2 5 Device 11 | 1 1 . . . . . 2 2 1 1 3 Storage 4 | 1 1 . . . . 1 . 1 . . . Processor 4 | . . . . . . . . 2 1 . 1 Hackware 7 | . . . . . . . . 3 2 1 1 Protection 6 | . 1 . 2 . . . 1 1 1 . . Artifact . | . . . . . . . . . . . . Weapon 34 | 3 1 1 7 . . 3 6 7 2 4 . Energy Gun 6 | 1 . . 2 . . . 3 . . . . Energy Cannon . | . . . . . . . . . . . . Ballistic Gun 10 | 2 . 1 3 . . . . 3 . 1 . Ballistic Cannon 6 | . . . 2 . . 2 1 . 1 . . Launcher 4 | . 1 . . . . 1 . 1 . 1 . Special Weapon . | . . . . . . . . . . . . Impact Weapon 3 | . . . . . . . 2 . 1 . . Slashing Weapon 4 | . . . . . . . . 3 . 1 . Piercing Weapon . | . . . . . . . . . . . . Special Melee Weapon 1 | . . . . . . . . . . 1 . Unidentified Prototypes 7 | . . . 1 . . . 3 2 1 . . Parts Lost 46 | . 4 2 1 . . . 5 4 4 9 17 Power 8 | . 1 1 . . . . 1 . 1 1 3 Propulsion 19 | . 1 . . . . . 2 4 2 4 6 Utility 8 | . 1 . . . . . 1 . 1 . 5 Weapon 11 | . 1 1 1 . . . 1 . . 4 3 Highest Loss Streak 6 | . 2 2 1 . . . 2 3 3 4 6 To Critical Strikes 1 | . . . . . . . . . . . 1 Average Backups 14 | 4 10 14 14 15 15 17 19 14 14 12 12 Power . | . . . . . . . 1 1 1 . . Propulsion 1 | 3 2 1 1 2 2 2 3 . . . 1 Utility 4 | . 2 3 3 4 4 5 6 5 5 7 6 Weapon 6 | . 4 8 8 8 8 8 7 5 5 2 1 Tool/Special . | . . . . . . . . . . . . Unused Backups 33 | . 3 4 3 . . 1 7 5 2 . 8 Power 1 | . . . . . . . 1 . . . . Propulsion 11 | . 2 4 1 . . . 1 1 . . 2 Utility 11 | . . . 1 . . . 3 2 2 . 3 Weapon 9 | . 1 . 1 . . 1 2 2 . . 2 Tool/Special 1 | . . . . . . . . . . . 1 Average Slot Usage (%) 94 | . 92 99 97 100 81 100 97 96 92 91 65 Engine 8 | . 13 13 11 11 11 11 8 . . . . Core 1 | . . . . . . . . 6 5 6 2 Treads 21 | . 27 28 31 33 33 33 33 . . . . Hover 9 | . . . . . . . . 34 33 32 14 Device 9 | . 4 6 11 11 11 11 17 5 5 6 10 Storage 9 | . 14 14 11 11 11 11 9 7 6 6 4 Processor 2 | . . . . . . . . 6 9 13 10 Hackware 3 | . . . . . . . . 13 9 12 7 Protection 6 | . 2 7 10 11 11 11 8 2 6 . . Energy Gun 3 | . 8 14 6 . . . . . . . . Ballistic Gun 7 | . 18 13 12 . . . . 4 6 6 . Ballistic Cannon 6 | . . . 3 22 4 21 16 3 . . . Slashing Weapon 1 | . . . . . . . . 6 5 2 4 Peak Build Rating 80 | 7 9 11 20 22 22 23 31 53 71 73 80 Average Rating 28 | 5 7 10 17 21 18 22 27 47 59 65 54 On Entrance 26 | . 7 9 11 18 22 22 23 27 45 71 58 Naked Turns 28 | . . . . . . . . . . . 28 Heaviest Build 63 | 13 32 34 37 41 41 61 63 39 39 44 44 Greatest Support 86 | 40 40 40 66 66 66 66 86 41 70 72 45 Greatest Overweight (x) 9 | . 1 . . . . . 1 1 1 1 9 Average Overweight (x) . | . . . . . . . . . . . . Largest Inventory Capacity 20 | 8 15 15 15 15 15 20 20 20 15 15 15 Average Capacity 15 | 7 11 15 15 15 15 19 20 15 15 15 14 Most Carried 20 | 7 15 15 15 15 15 18 20 20 15 15 14 Average Carried 14 | 4 10 14 14 15 15 17 19 14 14 12 11 Final Capacity 20 | 8 15 15 15 15 15 20 20 15 15 15 5 Final Carried 20 | 7 15 15 15 15 15 18 20 13 15 12 5 Class Distribution -------------------- 61% | Mutant 25% | Scavenger-Mutant 4% | Hacker-Scout Dominant Class ---------------- Mutant | -10/Materials Mutant | -10/Mines Scavenger-Mutant | -9/Materials Mutant | -9/Mines Mutant | -9/Exiles Mutant | -8/Mines Scavenger-Mutant | -8/Materials Mutant | -7/Factory Mutant | -6/Factory Hacker-Scout | -6/Extension Mutant | -5/Factory Resources | -11 -10 -10 -9 -9 -9 -8 -8 -7 -6 -6 -5 ----------- Run | Yrd Mat Min Mat Min Exi Min Mat Fac Fac Ext Fac Matter Collected 4312 | 364 373 120 452 91 . 275 835 642 168 887 105 Remotely . | . . . . . . . . . . . . Salvage Created 6480 | 189 770 865 1255 77 . 63 835 695 269 1075 387 Parts 334 | 16 46 40 73 4 . 12 50 35 11 30 17 Haulers Intercepted 10 | . 1 . 4 . . . 3 . 2 . . Recyclers Shooed 5 | . 2 . 1 . . . . . . 1 1 Parts Field Recycled . | . . . . . . . . . . . . Retrieved Matter . | . . . . . . . . . . . . Parts Self-Destructed . | . . . . . . . . . . . . Prevented . | . . . . . . . . . . . . Kills | -11 -10 -10 -9 -9 -9 -8 -8 -7 -6 -6 -5 ------- Run | Yrd Mat Min Mat Min Exi Min Mat Fac Fac Ext Fac Combat Hostiles Destroyed 112 | . 18 11 20 4 . 9 21 5 5 14 5 Melee 9 | . . . . . . . . . . 4 5 Guns 51 | . 15 8 19 . . . . 3 . 6 . Cannons 23 | . . . . 4 . 1 18 . . . . AOE 26 | . 3 3 1 . . 8 3 2 4 2 . Classes Destroyed 15 | 3 4 . 4 . . 1 . 2 . 1 . Worker 9 | 1 1 . 1 . . 1 . 4 . . 1 Builder 2 | . . . 1 . . . . 1 . . . Tunneler 4 | 4 . . . . . . . . . . . Hauler 10 | . 1 . 4 . . . 3 . 2 . . Recycler 19 | 1 1 7 2 . . . 1 5 . 2 . Mechanic 2 | . . . . . . . . 1 . . 1 Operator 4 | . . . 1 . . . 2 1 . . . Watcher 11 | . 1 . 3 . . . 4 . . 1 2 Swarmer 32 | . 6 3 3 3 . 8 4 . 4 . 1 Grunt 50 | . 12 8 11 . . . 9 2 . 8 . Duelist 3 | . . . 2 . . . . . . 1 . Sentry 15 | . . . 4 1 . . 7 . . 3 . Hunter 2 | . . . . . . 1 1 . . . . Programmer 8 | . . . . . . . . 3 1 . 4 Behemoth 2 | . . . . . . . . . . 2 . Best Kill Streak 6 | 4 5 3 6 3 . 4 5 3 4 2 2 Combat Bots Only 6 | . 5 3 6 3 . 4 5 2 4 2 1 Max Kills in Single Turn 4 | 1 2 2 2 2 . 4 3 2 3 2 1 Gunslinging 1 | . . . 1 . . . . . . . . Exploded 4 | . 2 1 1 . . 4 3 1 3 1 . Melee 1 | . . . . . . . . . . 1 1 Uniques/NPCs Destroyed . | . . . . . . . . . . . . Combat | -11 -10 -10 -9 -9 -9 -8 -8 -7 -6 -6 -5 -------- Run | Yrd Mat Min Mat Min Exi Min Mat Fac Fac Ext Fac Hostile Shots Fired 814 | . 83 30 61 8 . 36 91 112 52 188 153 Missed 275 | . 30 10 18 1 . 12 20 39 27 82 36 Hits 539 | . 53 20 43 7 . 24 71 73 25 106 117 Melee 2 | . . . 1 . . . . . . 1 . Projectile 537 | . 53 20 42 7 . 24 71 73 25 105 117 AOE 1 | . . . . . . . . 1 . . . Critical Strikes 19 | . 1 . 1 . . . 5 1 1 1 9 Damage Taken 7907 | . 662 230 566 54 . 315 1102 998 418 1505 2057 Core 1720 | . 108 14 100 9 . 10 92 132 46 199 1010 Absorbed by Shields 143 | . . . . . . . . . . 143 . Regen/Repaired (Parts) 113 | . . . . . . . 113 . . . . Core Remaining (%) 76 | 100 . 51 . . . 70 83 81 . 71 . Volleys Fired 380 | 14 56 45 75 6 . 15 75 35 4 55 . Largest 2 | 2 2 2 2 2 . 2 2 2 1 2 . Hottest 70 | 40 60 70 70 66 . 66 70 56 36 67 . Shots Fired 703 | 28 104 90 142 13 . 25 139 62 4 96 . Gun 494 | 28 102 90 136 . . . . 55 1 82 . Cannon 176 | . . . 6 13 . 19 138 . . . . Launcher 33 | . 2 . . . . 6 1 7 3 14 . Special . | . . . . . . . . . . . . Kinetic 564 | 28 94 45 89 13 . 19 138 55 1 82 . Thermal . | . . . . . . . . . . . . Explosive 33 | . 2 . . . . 6 1 7 3 14 . Electromagnetic 106 | . 8 45 53 . . . . . . . . Robot Hit Streak 14 | 6 14 7 13 8 . 5 13 7 6 14 . Robot Miss Streak 6 | 3 2 6 3 4 . 2 5 6 . 3 . Penetration Max 2 | . . . . . . . . 1 . 2 . Secondary Targets 7 | . 2 . 4 . . . . . . 1 . Max Gunslinging Chain 1 | . 1 . 1 . . . . . . 1 . Shots Hit Robots 518 | 17 71 49 93 6 . 13 84 44 16 101 24 Core Hits 252 | 7 36 25 48 4 . 12 41 22 10 36 11 Critical Kills 2 | . . . . . . . . . . 2 . Critical Parts Destroyed 10 | 1 1 . 1 . . . 1 . 1 2 3 Critical Strikes 24 | 1 1 . 5 . . . 4 . 4 5 4 Destroy 3 | 1 1 . 1 . . . . . . . . Blast 6 | . . . 3 . . . 3 . . . . Corrupt 1 | . . . 1 . . . . . . . . Smash 9 | . . . . . . . 1 . 1 4 3 Sever 5 | . . . . . . . . . 3 1 1 Melee Attacks 185 | . . . . . . . 9 70 26 33 47 Impact 55 | . . . . . . . 9 . 8 18 20 Slashing 118 | . . . . . . . . 70 18 3 27 Piercing . | . . . . . . . . . . . . Sneak Attacks 32 | . . . . . . . 2 12 2 13 3 Combat Hostiles . | . . . . . . . . . . . . Follow-up Attacks 6 | . . . . . . . . . . 2 4 Damage Inflicted 14261 | 224 1240 1065 1437 156 . 582 2158 2005 1079 3201 1114 Guns 5487 | 224 979 775 1272 . . . . 689 . 1548 . Cannons 2289 | . . . 87 156 . 206 1840 . . . . Explosions 2743 | . 230 276 41 . . 353 123 388 369 963 . Melee 3542 | . . . . . . . 187 928 710 655 1062 Ramming 200 | . 31 14 37 . . 23 8 . . 35 52 Kinetic 6807 | 224 891 419 834 156 . 206 1840 689 . 1548 . Thermal 339 | . 22 276 41 . . . . . . . . Explosive 2404 | . 208 . . . . 353 123 388 369 963 . Electromagnetic 969 | . 88 356 525 . . . . . . . . Impact 1217 | . . . . . . . 187 . 184 588 258 Slashing 2325 | . . . . . . . . 928 526 67 804 Piercing . | . . . . . . . . . . . . Highest Corruption 8 | . . . 3 3 3 3 . 7 3 3 8 Average Corruption 3 | . . . 3 3 3 3 . 5 2 3 5 Corruption Purged . | . . . . . . . . . . . . Corruption Blocked . | . . . . . . . . . . . . Effects 101 | . . . 20 10 7 16 . 23 . 16 9 Message Errors 22 | . . . 1 . 2 4 . 6 . 5 4 Matter Fused 30 | . . . 6 5 1 5 . 6 . 6 1 Heat Flow Errors 15 | . . . 4 2 1 1 . 5 . 1 1 Energy Discharges 6 | . . . 3 . . . . 2 . . 1 Parts Fused 3 | . . . 1 . 1 . . . . 1 . Data Loss (minor) 11 | . . . 2 1 1 5 . 1 . . 1 Data Loss (major) 7 | . . . 1 1 . . . 2 . 2 1 Misfires 3 | . . . . 1 . 1 . . . 1 . Alerts 2 | . . . 1 . 1 . . . . . . Weapon Failures 2 | . . . 1 . . . . 1 . . . Overload Shots . | . . . . . . . . . . . . Overflow Damage 745 | . . 8 . . . . 146 127 96 190 178 Projectiles 40 | . . . . . . . 40 . . . . Explosions 53 | . . 8 . . . . . 39 2 4 . Melee 652 | . . . . . . . 106 88 94 186 178 Knockbacks 33 | . 2 . 2 . . . 21 . 4 1 3 Impact 10 | . 2 . 1 . . . . . 4 1 2 Kinetic 20 | . . . 1 . . . 19 . . . . Secondary 3 | . . . . . . . 2 . . . 1 Self-Inflicted Damage 265 | . 20 . 39 . . 17 . 88 60 17 24 Shots 7 | . 1 . 1 . . 1 . 2 2 . . Rammed 34 | . 6 4 6 . . 1 1 . . 1 15 Targets Rammed 35 | . 6 4 7 . . 1 1 . . 1 15 Kicked . | . . . . . . . . . . . . Crushed 1 | . . . 1 . . . . . . . . Highest Temperature 320 | . 24 69 252 205 235 154 234 320 3 245 173 Average Temperature 61 | . 8 19 69 55 123 41 65 100 3 46 93 Received Heat Transfer 1776 | . 213 96 201 . . . 621 147 6 411 81 Effects 5 | . . . 2 . . . 3 . . . . Energy Bleed 2 | . . . 2 . . . . . . . . Interference 3 | . . . . . . . 3 . . . . Siege Activations . | . . . . . . . . . . . . Martial Activations . | . . . . . . . . . . . . Shielding Activations . | . . . . . . . . . . . . Robots Disrupted 1 | . . . 1 . . . . . . . . Combat Hostiles 1 | . . . 1 . . . . . . . . Robots Corrupted 3 | . . . . . . . 1 . . 2 . Combat Hostiles 2 | . . . . . . . . . . 2 . Parts Fried 5 | . . . . . . . 1 . . 4 . Impact Corruptions 15 | . . . . . . . 1 . 3 4 7 Robots Melted . | . . . . . . . . . . . . Combat Hostiles . | . . . . . . . . . . . . Parts Melted 2 | . . . . . . . . . . 2 . Heat Transferred 400 | . 50 300 50 . . . . . . . . Parts Sabotaged . | . . . . . . . . . . . . Parts Stolen . | . . . . . . . . . . . . Parts Stripped . | . . . . . . . . . . . . Power Chain Reactions 6 | . 1 4 1 . . . . . . . . Alert | -11 -10 -10 -9 -9 -9 -8 -8 -7 -6 -6 -5 ------- Run | Yrd Mat Min Mat Min Exi Min Mat Fac Fac Ext Fac Maximum Alert Level 1 | . . . . . . . . 1 . 1 . Low Security (%) 96 | 100 100 100 100 100 . 100 100 88 100 75 100 Level 1 3 | . . . . . . . . 11 . 24 . Level 2 . | . . . . . . . . . . . . Level 3 . | . . . . . . . . . . . . Level 4 . | . . . . . . . . . . . . Level 5 . | . . . . . . . . . . . . High Security . | . . . . . . . . . . . . Max Security . | . . . . . . . . . . . . Peak Influence 254 | 10 115 93 174 70 . 112 172 239 137 254 107 Initial 112 | . . 4 . 48 . . 8 74 112 51 107 Average 54 | 1 34 19 87 12 . 44 47 106 50 104 30 Influence Increases 4808 | 30 534 344 642 91 . 270 761 666 320 816 334 Destroy 0b10 Robot/C 2540 | . 360 220 420 80 . 180 420 100 100 480 180 Destroy 0b10 Robot/NC 305 | 30 20 35 60 . . 5 50 60 10 15 20 Destroy Leader 532 | . 74 40 94 10 . 30 124 40 24 52 44 Allied During Kill 127 | . . . 5 . . . . . . 89 33 Successful Hack 206 | . 33 . 40 . . . 41 31 41 20 . Disable Machine 225 | . 15 15 15 . . 15 30 60 30 45 . Destroy Structure 288 | . 17 19 8 1 . 40 36 90 25 40 12 Partial Spotted 180 | . . . . . . . . 120 45 15 . Lose Combat Pursuer 405 | . 15 15 . . . . 60 165 45 60 45 Influence Decreases 4778 | 30 523 355 516 217 . 248 619 601 444 702 523 Entered New Map 472 | . . 7 . 78 . . 14 90 117 54 112 Time Decay 3445 | 30 413 328 477 139 . 248 408 471 287 355 289 Lost Part 316 | . 40 20 10 . . . 50 40 40 90 26 Lost Ally 237 | . . . 20 . . . . . . 121 96 Purge Threat 308 | . 70 . 9 . . . 147 . . 82 . Squads Dispatched 22 | . 2 . 1 . . . 2 8 3 2 4 Investigation 8 | . 1 . . . . . . 2 2 2 1 Extermination 6 | . . . . . . . . 4 1 . 1 Reinforcement 8 | . 1 . 1 . . . 2 2 . . 2 Assault . | . . . . . . . . . . . . Garrison . | . . . . . . . . . . . . Intercept . | . . . . . . . . . . . . Searches Triggered . | . . . . . . . . . . . . Construction Impeded 1 | . . . . . . . . 1 . . . Haulers Reinforced 1 | . . . . . . . . . . . 1 Active Scanning Responses . | . . . . . . . . . . . . Cargo Convoy Interrupts . | . . . . . . . . . . . . Stealth | -11 -10 -10 -9 -9 -9 -8 -8 -7 -6 -6 -5 --------- Run | Yrd Mat Min Mat Min Exi Min Mat Fac Fac Ext Fac Distress Signals 9 | . 3 . 1 . . . 1 1 . 1 2 Communications Jammed . | . . . . . . . . . . . . Distress Signals . | . . . . . . . . . . . . Times Spotted 198 | . 24 12 33 5 . 8 34 24 8 29 21 Peak Tracking Total 8 | . 4 3 6 3 . 4 4 8 6 5 6 Tactical Retreats 20 | . 2 1 . . . . 3 6 2 3 3 Traps | -11 -10 -10 -9 -9 -9 -8 -8 -7 -6 -6 -5 ------- Run | Yrd Mat Min Mat Min Exi Min Mat Fac Fac Ext Fac Traps Triggered 9 | . 2 . . . . . 1 . 2 4 . Indirectly . | . . . . . . . . . . . . Trap Hack Attempts . | . . . . . . . . . . . . Triggered . | . . . . . . . . . . . . Disarmed 12 | . 6 . 6 . . . . . . . . Reprogrammed . | . . . . . . . . . . . . Reused . | . . . . . . . . . . . . Traps Extracted . | . . . . . . . . . . . . Installed . | . . . . . . . . . . . . Triggered . | . . . . . . . . . . . . Machines | -11 -10 -10 -9 -9 -9 -8 -8 -7 -6 -6 -5 ---------- Run | Yrd Mat Min Mat Min Exi Min Mat Fac Fac Ext Fac Machines Disabled 16 | . 1 1 1 . . 1 2 4 2 4 . Max in Single Turn 1 | . 1 1 1 . . 1 1 1 1 1 . Garrison Access 2 | . . . . . . . 1 1 . . . Machines Repaired . | . . . . . . . . . . . . Machines Dismantled . | . . . . . . . . . . . . Machines Sabotaged . | . . . . . . . . . . . . Overloaded Fab Kills . | . . . . . . . . . . . . Hacking | -11 -10 -10 -9 -9 -9 -8 -8 -7 -6 -6 -5 --------- Run | Yrd Mat Min Mat Min Exi Min Mat Fac Fac Ext Fac Machines Accessed 71 | . 7 1 7 . 1 . 13 19 8 11 4 Terminals 47 | . 7 . 7 . . . 7 9 5 11 1 Fabricators 5 | . . . . . . . . 2 2 . 1 Repair Stations 3 | . . . . . . . 2 1 . . . Recycling Units 6 | . . . . . . . 1 4 . . 1 Scanalyzers 4 | . . . . . . . 2 1 . . 1 Garrison Access 4 | . . . . . . . 1 2 1 . . Total Hacks 200 | . 24 1 28 . 1 . 44 49 23 20 10 Successful 108 | . 12 1 15 . 1 . 32 18 12 11 6 Failed 92 | . 12 . 13 . . . 12 31 11 9 4 Catastrophic 13 | . 1 . 1 . . . 1 8 1 . 1 Database Lockouts . | . . . . . . . . . . . . Manual 92 | . 17 . 13 . . . 19 21 16 2 4 Terminals 144 | . 24 . 28 . . . 30 26 13 20 3 Fabricators 18 | . . . . . . . . 6 9 . 3 Repair Stations 9 | . . . . . . . 6 3 . . . Recycling Units 9 | . . . . . . . 1 6 . . 2 Scanalyzers 11 | . . . . . . . 6 3 . . 2 Garrison Access 7 | . . . . . . . 1 5 1 . . Terminal Hacks 48 | . 7 1 11 . 1 . 10 5 2 11 . Record 3 | . . . . . 1 . . 1 1 . . Part Schematic 2 | . . . . . . . . . 1 1 . Robot Analysis 6 | . 3 . 1 . . . 2 . . . . Prototype ID Bank 4 | . 1 . 2 . . . . . . 1 . Open Door 9 | . . 1 . . . . . . . 8 . Recycling Unit Index 1 | . . . . . . . 1 . . . . Alert Level 2 | . . . . . . . 1 1 . . . Unreport Threat 6 | . 1 . 2 . . . 2 . . 1 . Locate Traps 2 | . 1 . . . . . 1 . . . . Disarm Traps 2 | . 1 . 1 . . . . . . . . Dispatch Records 2 | . . . 2 . . . . . . . . Transport Status 1 | . . . . . . . . 1 . . . Assault Status 1 | . . . 1 . . . . . . . . Hauler Manifests 3 | . . . 1 . . . 1 1 . . . Registered Components 2 | . . . . . . . 1 1 . . . Zone Layout 2 | . . . 1 . . . 1 . . . . Fabricator Hacks 9 | . . . . . . . . 2 5 . 2 Load Schematic 6 | . . . . . . . . 2 3 . 1 Build 3 | . . . . . . . . . 2 . 1 Repair Station Hacks 5 | . . . . . . . 4 1 . . . Scan Component 3 | . . . . . . . 2 1 . . . Repair 2 | . . . . . . . 2 . . . . Recycling Unit Hacks 4 | . . . . . . . 1 2 . . 1 Retrieve Components 4 | . . . . . . . 1 2 . . 1 Scanalyzer 10 | . . . . . . . 6 2 . . 2 Insert Component 5 | . . . . . . . 3 1 . . 1 Analyze 5 | . . . . . . . 3 1 . . 1 Garrison Access Hacks 2 | . . . . . . . 1 1 . . . Seal Access 2 | . . . . . . . 1 1 . . . Unauthorized Hacks 30 | . 5 . 4 . . . 10 5 5 . 1 Terminals 24 | . 5 . 4 . . . 10 3 2 . . Track 2 | . . . . . . . 2 . . . . Assimilate 1 | . . . . . . . 1 . . . . Botnet 8 | . . . . . . . 3 3 2 . . Operators 1 | . . . . . . . 1 . . . . Skim 12 | . 5 . 4 . . . 3 . . . . Fabricators 6 | . . . . . . . . 2 3 . 1 Prioritize 3 | . . . . . . . . . 2 . 1 Recompile 3 | . . . . . . . . 2 1 . . Repair Stations . | . . . . . . . . . . . . Recycling Units . | . . . . . . . . . . . . Scanalyzers . | . . . . . . . . . . . . Garrison Access . | . . . . . . . . . . . . Data Cores Recovered 1 | . . . . . . . 1 . . . . Used 1 | . . . . . . . 1 . . . . Hacking Detections 54 | . 7 . 7 . . . 9 15 7 7 2 Full Trace Events 3 | . . . . . . . . . . 2 1 Feedback Events . | . . . . . . . . . . . . Feedback Blocked . | . . . . . . . . . . . . Robot Schematics Acquired . | . . . . . . . . . . . . Robots Built . | . . . . . . . . . . . . Authchips . | . . . . . . . . . . . . Time . | . . . . . . . . . . . . Total Robot Build Rating . | . . . . . . . . . . . . Part Schematics Acquired 6 | . . . . . . . 3 . 1 1 1 Parts Built 6 | . . . . . . . . . 4 . 2 Authchips 3 | . . . . . . . . . 2 . 1 Time 285 | . . . . . . . . . 190 . 95 Total Part Build Rating 30 | . . . . . . . . . 20 . 10 Parts Repaired 2 | . . . . . . . 2 . . . . Time 114 | . . . . . . . 114 . . . . Parts Recycled . | . . . . . . . . . . . . Recycled Matter . | . . . . . . . . . . . . Retrieved Matter . | . . . . . . . . . . . . Retrieved Components 15 | . . . . . . . 10 5 . . . Parts Scanalyzed 5 | . . . . . . . 3 1 . . 1 Part Schematics Acquired 4 | . . . . . . . 3 . . . 1 Parts Damaged 2 | . . . . . . . 1 . . . 1 Bothacking | -11 -10 -10 -9 -9 -9 -8 -8 -7 -6 -6 -5 ------------ Run | Yrd Mat Min Mat Min Exi Min Mat Fac Fac Ext Fac Used RIF Installer . | . . . . . . . . . . . . Robots Hacked . | . . . . . . . . . . . . Non-combat . | . . . . . . . . . . . . Combat . | . . . . . . . . . . . . Robot Hacks Applied . | . . . . . . . . . . . . Relay Couplers Released . | . . . . . . . . . . . . Fabnet Peak Effective % . | . . . . . . . . . . . . Robots Rewired 7 | . . . . . . . . . . 7 . Allies Hacked . | . . . . . . . . . . . . Hacks Repelled . | . . . . . . . . . . . . Allies | -11 -10 -10 -9 -9 -9 -8 -8 -7 -6 -6 -5 -------- Run | Yrd Mat Min Mat Min Exi Min Mat Fac Fac Ext Fac Total Allies 18 | . . 1 . . . . . . . 17 . Largest Group 8 | . . 1 1 . . . . . . 8 8 Highest-Rated Group 344 | . . 31 31 . . . . . . 344 344 Highest-Rated Ally 159 | . . 31 31 . . . . . . 159 159 Total Orders . | . . . . . . . . . . . . Ally Attacks 96 | . . . 4 . . . . . . 78 14 Total Damage 2297 | . . . 62 . . . . . . 1886 349 Kills 15 | . . . 1 . . . . . . 10 4 Allies Corrupted . | . . . . . . . . . . . . Allies Melted 1 | . . . . . . . . . . 1 . Intel | -11 -10 -10 -9 -9 -9 -8 -8 -7 -6 -6 -5 ------- Run | Yrd Mat Min Mat Min Exi Min Mat Fac Fac Ext Fac Active Infowar (turns) 10000 | 81 477 748 1492 762 321 836 1647 1339 659 922 716 Optics 3627 | . . . . . . . . 1330 659 922 716 Sensors 3142 | . . . . . . . 422 976 655 728 361 Seismic 5942 | 81 477 748 1492 762 321 836 1225 . . . . Robot Analysis Total 6 | . 3 . 1 . . . 2 . . . . Derelict Logs Recovered 2 | . . 1 . 1 . . . . . . . Drone Launches . | . . . . . . . . . . . . Drone Recoveries . | . . . . . . . . . . . . Exploration | -11 -10 -10 -9 -9 -9 -8 -8 -7 -6 -6 -5 ------------- Run | Yrd Mat Min Mat Min Exi Min Mat Fac Fac Ext Fac Turns Passed 11987 | 177 1479 1582 1492 762 321 836 1674 1339 659 922 744 Spaces Moved 8591 | 79 672 819 753 465 199 469 814 2165 918 773 465 Core 59 | 9 . . . . . . . . . . 50 Treads 4261 | 70 672 819 753 465 199 469 814 . . . . Legs . | . . . . . . . . . . . . Wheels . | . . . . . . . . . . . . Hover 4271 | . . . . . . . . 2165 918 773 415 Flight . | . . . . . . . . . . . . Fastest Speed 38 | 50 160 160 160 160 160 160 160 38 44 60 50 Average Speed 111 | 147 163 160 160 160 160 160 166 44 57 76 119 Slowest Speed 500 | 160 240 160 160 160 160 160 240 105 105 144 500 Overloaded Moves . | . . . . . . . . . . . . Propulsion Burnouts . | . . . . . . . . . . . . Robots Hopped . | . . . . . . . . . . . . Potential Cave-ins . | . . . . . . . . . . . . Cave-ins Triggered . | . . . . . . . . . . . . Exploration Rate (%) 60 | 5 95 95 52 90 41 98 66 62 27 78 14 Regions Visited 11 Branch Regions 5 Pre-discovered Areas 4 | . 2 . . 1 1 . . . . . . Known Exits Taken 4 | . . 1 . . . . 1 . 1 1 . Unknown Exits Taken 7 | 1 1 . 1 1 1 1 . 1 . . . Scrap Searched 5 | . . 1 . 2 . 2 . . . . . Spaces Dug 111 | . 10 . . . . 11 8 54 22 . 6 Terrain Destroyed 345 | . 14 26 4 1 . 45 31 93 30 95 6 Melee 71 | . . . . . . . 5 54 6 . 6 Projectile 19 | . . 1 . 1 . . 13 . . 4 . AOE 255 | . 14 25 4 . . 45 13 39 24 91 . Terrain Rammed . | . . . . . . . . . . . . Walls Destroyed . | . . . . . . . . . . . . Machines Disabled . | . . . . . . . . . . . . Actions | -11 -10 -10 -9 -9 -9 -8 -8 -7 -6 -6 -5 --------- Run | Yrd Mat Min Mat Min Exi Min Mat Fac Fac Ext Fac Total 10060 | 108 943 1002 906 472 202 530 983 2372 993 978 571 Wait 479 | . 181 122 20 . . 35 7 24 3 55 32 Move 8580 | 78 671 818 752 464 198 468 813 2164 917 772 465 Hop . | . . . . . . . . . . . . Pick Up 90 | 8 14 6 9 . . 4 17 15 11 2 4 Fast Attach 47 | 6 4 . 3 . 2 . 11 6 6 1 8 Attach 39 | 1 3 2 4 . . . 5 8 7 6 3 Detach 9 | . 1 . 1 . . . 2 1 1 1 2 Swap 83 | 1 3 1 14 1 . 5 16 22 8 11 1 Drop 96 | . 4 4 21 1 2 2 27 27 8 . . Fire 380 | 14 56 45 75 6 . 15 75 35 4 55 . Melee 176 | . . . . . . . 9 70 26 30 41 Ram 16 | . . . . . . . . . . 1 15 Kick . | . . . . . . . . . . . . Crush 19 | . 6 4 7 . . 1 1 . . . . Escape Stasis 46 | . . . . . . . . . 2 44 . Rewire . | . . . . . . . . . . . . Trap . | . . . . . . . . . . . . Miscellaneous . | . . . . . . . . . . . . Route ------- -11/Scrapyard -10/Materials (discovered 6 exits: *Mat x3 / *Min x2 / Sub) -10/Mines (discovered 3 exits: *Mat x2 / Sub) -9/Materials (discovered 2 exits: *Mat / [*Min]) -9/Mines (discovered 3 exits: *Mat x2 / *Exi) -9/Exiles -8/Mines (discovered 2 exits: *Mat x2) -8/Materials (discovered 3 exits: *Fac x3) -7/Factory (discovered 3 exits: *Fac x2 / [*Low]) -6/Factory (discovered 3 exits: *Fac / [*Low] / *Ext) -6/Extension (discovered 2 exits: *Fac / *Cet) -5/Factory History --------- Turn | Location | Event 6 | -11/Scrapyard | Discovered new exit (range 15) 178 | -11/Scrapyard | Entered Materials 312 | -10/Materials | Build established: Mutant 365 | -10/Materials | Discovered new exit (range 11) 625 | -10/Materials | Discovered new exit (range 15) 678 | -10/Materials | Derelicts attacked the area 695 | -10/Materials | Discovered new exit (range 13) 817 | -10/Materials | Discovered new exit (range 13) 1390 | -10/Materials | Discovered new exit (range 5) 1474 | -10/Materials | Learned Recycling recycling unit intel 1514 | -10/Materials | Learned Storage emergency access door positions 1544 | -10/Materials | Learned location of Recycling (-9) 1562 | -10/Materials | Identified exit to Subcaves 1568 | -10/Materials | Learned location of 2 exits from Mines 1657 | -10/Materials | Entered Mines 1658 | -10/Mines | Assembled infested the area 1658 | -10/Mines | Identified exit to Materials 1663 | -10/Mines | Assisted by a Guerilla fighting off Assembled 1743 | -10/Mines | Discovered exit to Materials (range 12) 1809 | -10/Mines | Met a Derelict who couldn't figure out how to use a Trap Extractor 2092 | -10/Mines | Received a Rocket Launcher from a helpful Derelict 2774 | -10/Mines | Escorted by a lone wolf Derelict 2778 | -10/Mines | Build established: Scavenger-Mutant 3239 | -10/Mines | Entered Materials 3239 | -9/Materials | Accompanied by 1 ally 3239 | -9/Materials | Evolved 2 slots: Propulsion x1, Utility x1 3542 | -9/Materials | Discovered new exit (range 6) 4077 | -9/Materials | Discovered new exit (range 15) 4099 | -9/Materials | Build established: Mutant 4406 | -9/Materials | Build established: Scavenger-Mutant 4731 | -9/Materials | Entered Mines 4771 | -9/Mines | Discovered new exit (range 8) 4804 | -9/Mines | Build established: Mutant 4821 | -9/Mines | Learned 8 Materials zone layouts 4821 | -9/Mines | Joined a pair of Derelicts in attacking an 0b10 outpost 4992 | -9/Mines | Found a Scrap Suit stashed away for nefarious purposes 5070 | -9/Mines | Learned location of Storage (-9) 5072 | -9/Mines | Discovered new exit (range 14) 5276 | -9/Mines | Deemed a non-threat by the Exiles lab entrance 5277 | -9/Mines | Discovered new exit (range 5) 5493 | -9/Mines | Entered Exiles 5533 | -9/Exiles | Met 8R-AWN 5560 | -9/Exiles | Met EX-HEX 5622 | -9/Exiles | Met EX-DEC 5632 | -9/Exiles | Learned location of Zion (-7) 5793 | -9/Exiles | Discovered new exit (range 14) 5814 | -9/Exiles | Entered Mines 6230 | -8/Mines | Discovered new exit (range 11) 6300 | -8/Mines | Discovered new exit (range 9) 6650 | -8/Mines | Entered Materials 6650 | -8/Materials | Evolved 2 slots: Propulsion x1, Utility x1 6651 | -8/Materials | Identified exit to Factory 7059 | -8/Materials | Build established: Scavenger-Mutant 7519 | -8/Materials | Repaired Broken Aerolev Unit? 8154 | -8/Materials | Discovered exit to Factory (range 8) 8209 | -8/Materials | Repaired Imp. Light Armor Plating? 8324 | -8/Materials | Entered Factory 8324 | -7/Factory | Evolved 2 slots: Propulsion x1, Utility x1 8617 | -7/Factory | Build established: Mutant 8682 | -7/Factory | Discovered new exit (range 6) 8759 | -7/Factory | Discovered new exit (range 5) 9240 | -7/Factory | Discovered new exit (range 21) 9430 | -7/Factory | Lost 3 parts (3n) 9663 | -7/Factory | Entered another Factory area 9663 | -6/Factory | Evolved 2 slots: Propulsion x1, Utility x1 9860 | -6/Factory | Discovered new exit (range 21) 10034 | -6/Factory | Fabricated Cmb. Airjet (x2) 10041 | -6/Factory | Fabricated Cmb. Airjet? 10103 | -6/Factory | Discovered new exit (range 8) 10107 | -6/Factory | Identified exit to Factory 10276 | -6/Factory | Lost 3 parts (2n1u) 10308 | -6/Factory | Discovered new exit (range 19) 10321 | -6/Factory | Identified exit to Extension 10322 | -6/Factory | Entered Extension 10467 | -6/Extension | Lost 4 allies 10529 | -6/Extension | Rescued a captive Derelict 10539 | -6/Extension | Rescued a captive Derelict 10608 | -6/Extension | Spotted B-75 Beast 10712 | -6/Extension | Rescued a captive Derelict 10713 | -6/Extension | Rescued a captive Derelict 10762 | -6/Extension | Destroyed B-75 Beast 10791 | -6/Extension | Lost 3 parts (1p2w) 10807 | -6/Extension | Spotted B-75 Beast 10831 | -6/Extension | Destroyed B-75 Beast 10859 | -6/Extension | Lost 4 parts (2n2w) 10871 | -6/Extension | Rescued A7 10897 | -6/Extension | Rescued a captive Derelict 10983 | -6/Extension | Rescued a captive Derelict 10983 | -6/Extension | Rescued a captive Derelict 11086 | -6/Extension | Rescued a captive Derelict 11121 | -6/Extension | Rescued a captive Derelict 11199 | -6/Extension | Discovered exit to Factory (range 10) 11201 | -6/Extension | Discovered new exit (range 6) 11239 | -6/Extension | Identified exit to Cetus 11244 | -6/Extension | Entered Factory 11244 | -5/Factory | Accompanied by 8 allies (A7) 11244 | -5/Factory | Evolved 2 slots: Utility x2 11421 | -5/Factory | Lost 3 allies 11482 | -5/Factory | Allied Derelicts emerged from ambush trap array 11572 | -5/Factory | Fabricated Cmb. Airjet? 11627 | -5/Factory | Lost 6 allies 11645 | -5/Factory | Lost 4 parts (1p2u1w) 11801 | -5/Factory | Lost 6 parts (1p4n1u) 11960 | -5/Factory | Released all parts (3) 11961 | -5/Factory | Core integrity fell below 50% 11982 | -5/Factory | Core integrity fell below 20% 11988 | -5/Factory | Destroyed by S-27 Virus with Autogun Last Messages --------------- reinforcements to Terminal F015. 11942_ Acquired 5 matter. 11944_ W-25 Informer sends out distress signal. 11947_ Slammed into W-25 Informer. 11949_ Imp. Cryofiber Web destroyed. 11951_ EX0MRPF67XPF=K/H NNOW=EJX 11954_ Great Axe destroyed. 11956_ Powered Hammer destroyed. 11959_ Antigrav System destroyed. 11960_ Released Lrg. Storage Unit. 11960_ Released Enh. Optical Array. 11960_ Released Adv. Signal Interpreter. 11967_ System corrupted: Heat flow error (+213). 11975_ Slammed into S-27 Virus. 11982_ Destabilizing: System corrupted (+1). 11983_ Slammed into S-27 Virus. 11986_ BMUQHGCZY/DR&DC XS=IMC2WR0O4P>R 11986_ Slammed into S-27 Virus. 11986_ S-27 Virus destroyed. 11987_ Slammed into S-27 Virus. Map ----- +----------------------------------------------------+ | ?????????????????????????????????????????????????? | | ?????????????????????????????????????????????????? | | ?????????????????????????????????????????????????? | | ?????????????????????????????????????????????????? | | ?????????????????????????????????????????????????? | | ?????????????????????????????????????????????????? | | ?????????????????????????????????????????????????? | | ?????????????????????????????????????????????????? | | ?????????????????????????????????????????????????? | | ?????????????????????????????????????????????????? | | ?????????????????????????????????????????????????? | | ?????????????????????????????????????????????????? | | ?????????????????????????????????????????????????? | | ?????????????????????????????????????????????????? | | ?????????????????????????????????????????????????? | | ?????????????????????????????????????????????????? | | ????????????????????????###########??????????????? | | ????????????????????????# ?????????????? | | ????????????????????????# ??????????????? | | ????????????????????????# ???????????????? | | ????????????????????????# ????????????????? | | ????????????????????????# """" "????????????????? | | ????????????????????????# """"w"????????????????? | | ????????????????????????#%["""" "????????????????? | | ????????????????????????#=%"""" "????????????????? | | ????????????????????????#@%"""" "????????????????? | | ????????????????????????#ss"""" ""???????????????? | | ????????????????????????#%s"""" """" #???????????? | | ????????????????????????# #???????????? | | ??????????????????#######+#####+#############+#### | | ??????????? ? | | ??????????? ? | | ??????????? | | ???????????? | | ???????????? | | ????????????? ################ ######+#??? | | ????????????# ????????????????# #?????????? | | ????????????? ?????????????????# #?????????? | | ????????????? ???????????????????# #?????????? | | ?????????????????????????????????# #?????????? | | ????????????? ?????????????????# #?????????? | | ????????????? #??????????????# % #?????????? | | ????????????? #??????????????# #?????????? | | ????????????? #??????????????# ] #?????????? | | ????????????# ################[!! #?????????? | | ????????????# %%%!=! #?????????? | | ????????????# =/! #?????????? | | ????????????# #?????????? | | ############# #?????????? | | # ## % #?????????? | +----------------------------------------------------+ Best States ------------- Heat Dissipation 40 Energy Generation 18 Energy Capacity 310 Matter Stores 300 Matter Capacity 300 Sight Range 22 Robot Scan Range 16 Terrain Scan Density 10 Base Temperature (-) 150 Armor Coverage 150 Evasion (%) 57 Targeting Accuracy 20 Recoil Reduction 8 Offensive Hacking 24 Defensive Hacking 10 Authchip Count 2 Item Schematics ----------------- Aerolev Unit | -8/Materials | Scanalyzed Lrg. Storage Unit | -8/Materials | Scanalyzed Plasma Cutter | -8/Materials | Scanalyzed Cmb. Airjet | -6/Factory | Hacked Cld. Airjet | -6/Extension | Hacked Linear Gravjet | -5/Factory | Scanalyzed Robot Schematics ------------------ None Fabricated ------------ Cmb. Airjet | x2 | -6/Factory | Authchip Cmb. Airjet | x2 | -6/Factory | Authchip Cmb. Airjet | x2 | -5/Factory | Authchip Repaired ---------- Aerolev Unit | 99% | -8/Materials | Broken Imp. Light Armor Plating | 37% | -8/Materials Alien Tech Used ----------------- None Achievements -------------- Prison Break Challenges ------------ None Game ------ Seed LargeHypervelocityBasin Manual? 0 Play Time 01:41:14 Cumulative 86.5 hours Start 2025.07.16 @ 21:51:47 End 2025.07.18 @ 18:51:29 Sessions 5 Manual Loads 0 Difficulty Rogue Special Mode None Game No. 81 Rogue 81 Adventurer 0 Explorer 0 Win Type - Total 1 Types 1/0/0/0/0/0/0/0/0/0 Lore% 44 Gallery% 44 Achievement% 45 Wizard Run 0 Options --------- Layout 1 ASCII 0 Keyboard 1 Movement Arrows Keybinds 0 Fullscreen 1 Font 24/Smallcaps Map View 50x40 Zoom Use 0% Tactical HUD 1 Map Filters NONE Filters NONE Steam 1 RUN: b56c2ebb-4332-41fa-b030-2eba57a9a12b